Workbook

Sheet tala sod ojrat
A1: تاریخ | B1: مبلغ واحد | C1: اجرت | D1: سود | E1: پرداخت شده | F1: شماره فاکتور | G1: کد طرف حساب | H1: کد کالا | I1: ارزش افزوده | J1: عیار | K1: تعداد | L1: مبلغ تخفیف | M1: اجرت ساخت | N1: سود فروشنده | O1: نوع | P1: الگو | Q1: موضوع | R1: روش تسویه | S1: اختلاف | T1: تعداد با اعشار
A2: 1404-06-24 | B2: 87000000 | C2: 10 | D2: 20 | E2: 300000000 | F2: 100 | G2: =IF(E2>0,100,"") -> 100 | H2: 100 | I2: 0 | J2: 18 | K2: =IF(IF((ROUNDDOWN(T2,4)*10000)-ROUNDDOWN(T2,3)*10000>5,ROUNDUP(T2,3)+0.001,ROUNDUP(T2,3))=0,"",IF((ROUNDDOWN(T2,4)*10000)-ROUNDDOWN(T2,3)*10000>5,ROUNDUP(T2,3)+0.001,ROUNDUP(T2,3))) -> 2.613 | L2: =IFERROR(IF(E2>0,IF(ROUNDDOWN(K2*B2,0)+ROUNDDOWN(ROUNDDOWN(K2*B2,0)*C2%,0)+ROUNDDOWN((ROUNDDOWN(K2*B2,0)+ROUNDDOWN(ROUNDDOWN(K2*B2,0)*C2%,0))*D2%,0)+ROUNDDOWN((M2+N2)*I2%,0)-E2>(K2*B2)*1%,0,IF(ROUNDDOWN(K2*B2,0)+ROUNDDOWN(ROUNDDOWN(K2*B2,0)*C2%,0)+ROUNDDOWN((ROUNDDOWN(K2*B2,0)+ROUNDDOWN(ROUNDDOWN(K2*B2,0)*C2%,0))*D2%,0)+ROUNDDOWN((M2+N2)*I2%,0)-E2<0,0,ROUNDDOWN(K2*B2,0)+ROUNDDOWN(ROUNDDOWN(K2*B2,0)*C2%,0)+ROUNDDOWN((ROUNDDOWN(K2*B2,0)+ROUNDDOWN(ROUNDDOWN(K2*B2,0)*C2%,0))*D2%,0)+ROUNDDOWN((M2+N2)*I2%,0)-E2)),""),0) -> 76920 | M2: =IFERROR(IF(E2>0,ROUNDDOWN(ROUNDDOWN(K2*B2,0)*C2%,0),""),"") -> 22733100 | N2: =IFERROR(IF(E2>0,ROUNDDOWN((ROUNDDOWN(K2*B2,0)+ROUNDDOWN(ROUNDDOWN(K2*B2,0)*C2%,0))*D2%,0),""),"") -> 50012820 | O2: =IF(F2<>"",2,"") -> 2 | P2: =IF(F2<>"",3,"") -> 3 | Q2: =IF(F2<>"",1,"") -> 1 | R2: =IF(F2<>"",1,"") -> 1 | S2: =IFERROR(IF(E2>0,ROUNDDOWN(K2*B2,0)+ROUNDDOWN(ROUNDDOWN(K2*B2,0)*C2%,0)+ROUNDDOWN((ROUNDDOWN(K2*B2,0)+ROUNDDOWN(ROUNDDOWN(K2*B2,0)*C2%,0))*D2%,0)+ROUNDDOWN((M2+N2)*I2%,0)-E2-L2,""),0) -> 0 | T2: 2.612226822
B3: 52850000 | C3: 18 | D3: 7 | E3: 10000000 | F3: =IF(E3>0,F2+1,"") -> 101 | G3: =IF(E3>0,G2,"") -> 100 | H3: =IF(E3>0,H2,"") -> 100 | I3: 10 | J3: =IF(E3>0,J2,"") -> 18 | K3: 0.147 | L3: =IF(E3>0,IF(ROUNDDOWN(K3*B3,0)+ROUNDDOWN(ROUNDDOWN(K3*B3,0)*C3%,0)+ROUNDDOWN((ROUNDDOWN(K3*B3,0)+ROUNDDOWN(ROUNDDOWN(K3*B3,0)*C3%,0))*D3%,0)+ROUNDDOWN((M3+N3)*I3%,0)-E3>(K3*B3)*1%,0,IF(ROUNDDOWN(K3*B3,0)+ROUNDDOWN(ROUNDDOWN(K3*B3,0)*C3%,0)+ROUNDDOWN((ROUNDDOWN(K3*B3,0)+ROUNDDOWN(ROUNDDOWN(K3*B3,0)*C3%,0))*D3%,0)+ROUNDDOWN((M3+N3)*I3%,0)-E3<0,0,ROUNDDOWN(K3*B3,0)+ROUNDDOWN(ROUNDDOWN(K3*B3,0)*C3%,0)+ROUNDDOWN((ROUNDDOWN(K3*B3,0)+ROUNDDOWN(ROUNDDOWN(K3*B3,0)*C3%,0))*D3%,0)+ROUNDDOWN((M3+N3)*I3%,0)-E3)),"") -> 13088 | M3: =IF(E3>0,ROUNDDOWN(ROUNDDOWN(K3*B3,0)*C3%,0),"") -> 1398411 | N3: =IF(E3>0,ROUNDDOWN((ROUNDDOWN(K3*B3,0)+ROUNDDOWN(ROUNDDOWN(K3*B3,0)*C3%,0))*D3%,0),"") -> 641715 | O3: =IF(F3<>"",2,"") -> 2 | P3: =IF(F3<>"",3,"") -> 3 | Q3: =IF(F3<>"",1,"") -> 1 | R3: =IF(F3<>"",1,"") -> 1 | S3: 0 | T3: 0.1457159799
B4: 52370000 | C4: 12 | D4: 7 | E4: 100000000 | F4: 102 | G4: =IF(E4>0,G3,"") -> 100 | H4: =IF(E4>0,H3,"") -> 100 | I4: 10 | J4: 18 | K4: 1.568 | L4: 37189 | M4: 9853939 | N4: 6437906 | O4: 2 | P4: 3 | Q4: 1 | R4: 1 | S4: 0 | T4: 1.567417072
B5: 53550000 | C5: 18 | D5: 7 | E5: 2000000000 | F5: 103 | G5: 100 | H5: 100 | I5: 10 | J5: 18 | K5: 28.979 | L5: 85749 | M5: 279328581 | N5: 128180782 | O5: 2 | P5: 3 | Q5: 1 | R5: 1 | S5: 0 | T5: 28.9777576
B6: 80000000
O19: =IF(F19<>"",2,"") ->  | P19: =IF(F19<>"",3,"") ->  | Q19: =IF(F19<>"",1,"") ->  | R19: =IF(F19<>"",1,"") -> 
K34: =IF(IF((ROUNDDOWN(T34,4)*10000)-ROUNDDOWN(T34,3)*10000>5,ROUNDUP(T34,3)+0.001,ROUNDUP(T34,3))=0,"",IF((ROUNDDOWN(T34,4)*10000)-ROUNDDOWN(T34,3)*10000>5,ROUNDUP(T34,3)+0.001,ROUNDUP(T34,3))) ->  | S34: =IFERROR(IF(E34>0,ROUNDDOWN(K34*B34,0)+ROUNDDOWN(ROUNDDOWN(K34*B34,0)*C34%,0)+ROUNDDOWN((ROUNDDOWN(K34*B34,0)+ROUNDDOWN(ROUNDDOWN(K34*B34,0)*C34%,0))*D34%,0)+ROUNDDOWN((M34+N34)*I34%,0)-E34-L34,""),0) -> 
F35: =IF(E35>0,F34+1,"") ->  | J35: =IF(E35>0,J34,"") ->  | L35: =IF(E35>0,IF(ROUNDDOWN(K35*B35,0)+ROUNDDOWN(ROUNDDOWN(K35*B35,0)*C35%,0)+ROUNDDOWN((ROUNDDOWN(K35*B35,0)+ROUNDDOWN(ROUNDDOWN(K35*B35,0)*C35%,0))*D35%,0)+ROUNDDOWN((M35+N35)*I35%,0)-E35>(K35*B35)*1%,0,IF(ROUNDDOWN(K35*B35,0)+ROUNDDOWN(ROUNDDOWN(K35*B35,0)*C35%,0)+ROUNDDOWN((ROUNDDOWN(K35*B35,0)+ROUNDDOWN(ROUNDDOWN(K35*B35,0)*C35%,0))*D35%,0)+ROUNDDOWN((M35+N35)*I35%,0)-E35<0,0,ROUNDDOWN(K35*B35,0)+ROUNDDOWN(ROUNDDOWN(K35*B35,0)*C35%,0)+ROUNDDOWN((ROUNDDOWN(K35*B35,0)+ROUNDDOWN(ROUNDDOWN(K35*B35,0)*C35%,0))*D35%,0)+ROUNDDOWN((M35+N35)*I35%,0)-E35)),"") ->  | M35: =IF(E35>0,ROUNDDOWN(ROUNDDOWN(K35*B35,0)*C35%,0),"") ->  | N35: =IF(E35>0,ROUNDDOWN((ROUNDDOWN(K35*B35,0)+ROUNDDOWN(ROUNDDOWN(K35*B35,0)*C35%,0))*D35%,0),"") -> 
O51: =IF(F51<>"",2,"") ->  | P51: =IF(F51<>"",3,"") ->  | Q51: =IF(F51<>"",1,"") ->  | R51: =IF(F51<>"",1,"") -> 
K66: =IF(IF((ROUNDDOWN(T66,4)*10000)-ROUNDDOWN(T66,3)*10000>5,ROUNDUP(T66,3)+0.001,ROUNDUP(T66,3))=0,"",IF((ROUNDDOWN(T66,4)*10000)-ROUNDDOWN(T66,3)*10000>5,ROUNDUP(T66,3)+0.001,ROUNDUP(T66,3))) ->  | S66: =IFERROR(IF(E66>0,ROUNDDOWN(K66*B66,0)+ROUNDDOWN(ROUNDDOWN(K66*B66,0)*C66%,0)+ROUNDDOWN((ROUNDDOWN(K66*B66,0)+ROUNDDOWN(ROUNDDOWN(K66*B66,0)*C66%,0))*D66%,0)+ROUNDDOWN((M66+N66)*I66%,0)-E66-L66,""),0) -> 
F67: =IF(E67>0,F66+1,"") ->  | J67: =IF(E67>0,J66,"") ->  | L67: =IF(E67>0,IF(ROUNDDOWN(K67*B67,0)+ROUNDDOWN(ROUNDDOWN(K67*B67,0)*C67%,0)+ROUNDDOWN((ROUNDDOWN(K67*B67,0)+ROUNDDOWN(ROUNDDOWN(K67*B67,0)*C67%,0))*D67%,0)+ROUNDDOWN((M67+N67)*I67%,0)-E67>(K67*B67)*1%,0,IF(ROUNDDOWN(K67*B67,0)+ROUNDDOWN(ROUNDDOWN(K67*B67,0)*C67%,0)+ROUNDDOWN((ROUNDDOWN(K67*B67,0)+ROUNDDOWN(ROUNDDOWN(K67*B67,0)*C67%,0))*D67%,0)+ROUNDDOWN((M67+N67)*I67%,0)-E67<0,0,ROUNDDOWN(K67*B67,0)+ROUNDDOWN(ROUNDDOWN(K67*B67,0)*C67%,0)+ROUNDDOWN((ROUNDDOWN(K67*B67,0)+ROUNDDOWN(ROUNDDOWN(K67*B67,0)*C67%,0))*D67%,0)+ROUNDDOWN((M67+N67)*I67%,0)-E67)),"") ->  | M67: =IF(E67>0,ROUNDDOWN(ROUNDDOWN(K67*B67,0)*C67%,0),"") ->  | N67: =IF(E67>0,ROUNDDOWN((ROUNDDOWN(K67*B67,0)+ROUNDDOWN(ROUNDDOWN(K67*B67,0)*C67%,0))*D67%,0),"") -> 
G68: =IF(E68>0,G67,"") ->  | H68: =IF(E68>0,H67,"") -> 
O83: =IF(F83<>"",2,"") ->  | P83: =IF(F83<>"",3,"") ->  | Q83: =IF(F83<>"",1,"") ->  | R83: =IF(F83<>"",1,"") -> 
K98: =IF(IF((ROUNDDOWN(T98,4)*10000)-ROUNDDOWN(T98,3)*10000>5,ROUNDUP(T98,3)+0.001,ROUNDUP(T98,3))=0,"",IF((ROUNDDOWN(T98,4)*10000)-ROUNDDOWN(T98,3)*10000>5,ROUNDUP(T98,3)+0.001,ROUNDUP(T98,3))) ->  | S98: =IFERROR(IF(E98>0,ROUNDDOWN(K98*B98,0)+ROUNDDOWN(ROUNDDOWN(K98*B98,0)*C98%,0)+ROUNDDOWN((ROUNDDOWN(K98*B98,0)+ROUNDDOWN(ROUNDDOWN(K98*B98,0)*C98%,0))*D98%,0)+ROUNDDOWN((M98+N98)*I98%,0)-E98-L98,""),0) -> 
F99: =IF(E99>0,F98+1,"") ->  | J99: =IF(E99>0,J98,"") ->  | L99: =IF(E99>0,IF(ROUNDDOWN(K99*B99,0)+ROUNDDOWN(ROUNDDOWN(K99*B99,0)*C99%,0)+ROUNDDOWN((ROUNDDOWN(K99*B99,0)+ROUNDDOWN(ROUNDDOWN(K99*B99,0)*C99%,0))*D99%,0)+ROUNDDOWN((M99+N99)*I99%,0)-E99>(K99*B99)*1%,0,IF(ROUNDDOWN(K99*B99,0)+ROUNDDOWN(ROUNDDOWN(K99*B99,0)*C99%,0)+ROUNDDOWN((ROUNDDOWN(K99*B99,0)+ROUNDDOWN(ROUNDDOWN(K99*B99,0)*C99%,0))*D99%,0)+ROUNDDOWN((M99+N99)*I99%,0)-E99<0,0,ROUNDDOWN(K99*B99,0)+ROUNDDOWN(ROUNDDOWN(K99*B99,0)*C99%,0)+ROUNDDOWN((ROUNDDOWN(K99*B99,0)+ROUNDDOWN(ROUNDDOWN(K99*B99,0)*C99%,0))*D99%,0)+ROUNDDOWN((M99+N99)*I99%,0)-E99)),"") ->  | M99: =IF(E99>0,ROUNDDOWN(ROUNDDOWN(K99*B99,0)*C99%,0),"") ->  | N99: =IF(E99>0,ROUNDDOWN((ROUNDDOWN(K99*B99,0)+ROUNDDOWN(ROUNDDOWN(K99*B99,0)*C99%,0))*D99%,0),"") -> 
O115: =IF(F115<>"",2,"") ->  | P115: =IF(F115<>"",3,"") ->  | Q115: =IF(F115<>"",1,"") ->  | R115: =IF(F115<>"",1,"") -> 
K130: =IF(IF((ROUNDDOWN(T130,4)*10000)-ROUNDDOWN(T130,3)*10000>5,ROUNDUP(T130,3)+0.001,ROUNDUP(T130,3))=0,"",IF((ROUNDDOWN(T130,4)*10000)-ROUNDDOWN(T130,3)*10000>5,ROUNDUP(T130,3)+0.001,ROUNDUP(T130,3))) ->  | S130: =IFERROR(IF(E130>0,ROUNDDOWN(K130*B130,0)+ROUNDDOWN(ROUNDDOWN(K130*B130,0)*C130%,0)+ROUNDDOWN((ROUNDDOWN(K130*B130,0)+ROUNDDOWN(ROUNDDOWN(K130*B130,0)*C130%,0))*D130%,0)+ROUNDDOWN((M130+N130)*I130%,0)-E130-L130,""),0) -> 
F131: =IF(E131>0,F130+1,"") ->  | J131: =IF(E131>0,J130,"") ->  | L131: =IF(E131>0,IF(ROUNDDOWN(K131*B131,0)+ROUNDDOWN(ROUNDDOWN(K131*B131,0)*C131%,0)+ROUNDDOWN((ROUNDDOWN(K131*B131,0)+ROUNDDOWN(ROUNDDOWN(K131*B131,0)*C131%,0))*D131%,0)+ROUNDDOWN((M131+N131)*I131%,0)-E131>(K131*B131)*1%,0,IF(ROUNDDOWN(K131*B131,0)+ROUNDDOWN(ROUNDDOWN(K131*B131,0)*C131%,0)+ROUNDDOWN((ROUNDDOWN(K131*B131,0)+ROUNDDOWN(ROUNDDOWN(K131*B131,0)*C131%,0))*D131%,0)+ROUNDDOWN((M131+N131)*I131%,0)-E131<0,0,ROUNDDOWN(K131*B131,0)+ROUNDDOWN(ROUNDDOWN(K131*B131,0)*C131%,0)+ROUNDDOWN((ROUNDDOWN(K131*B131,0)+ROUNDDOWN(ROUNDDOWN(K131*B131,0)*C131%,0))*D131%,0)+ROUNDDOWN((M131+N131)*I131%,0)-E131)),"") ->  | M131: =IF(E131>0,ROUNDDOWN(ROUNDDOWN(K131*B131,0)*C131%,0),"") ->  | N131: =IF(E131>0,ROUNDDOWN((ROUNDDOWN(K131*B131,0)+ROUNDDOWN(ROUNDDOWN(K131*B131,0)*C131%,0))*D131%,0),"") -> 
G132: =IF(E132>0,G131,"") ->  | H132: =IF(E132>0,H131,"") -> 
O147: =IF(F147<>"",2,"") ->  | P147: =IF(F147<>"",3,"") ->  | Q147: =IF(F147<>"",1,"") ->  | R147: =IF(F147<>"",1,"") -> 
K162: =IF(IF((ROUNDDOWN(T162,4)*10000)-ROUNDDOWN(T162,3)*10000>5,ROUNDUP(T162,3)+0.001,ROUNDUP(T162,3))=0,"",IF((ROUNDDOWN(T162,4)*10000)-ROUNDDOWN(T162,3)*10000>5,ROUNDUP(T162,3)+0.001,ROUNDUP(T162,3))) ->  | S162: =IFERROR(IF(E162>0,ROUNDDOWN(K162*B162,0)+ROUNDDOWN(ROUNDDOWN(K162*B162,0)*C162%,0)+ROUNDDOWN((ROUNDDOWN(K162*B162,0)+ROUNDDOWN(ROUNDDOWN(K162*B162,0)*C162%,0))*D162%,0)+ROUNDDOWN((M162+N162)*I162%,0)-E162-L162,""),0) -> 
F163: =IF(E163>0,F162+1,"") ->  | J163: =IF(E163>0,J162,"") ->  | L163: =IF(E163>0,IF(ROUNDDOWN(K163*B163,0)+ROUNDDOWN(ROUNDDOWN(K163*B163,0)*C163%,0)+ROUNDDOWN((ROUNDDOWN(K163*B163,0)+ROUNDDOWN(ROUNDDOWN(K163*B163,0)*C163%,0))*D163%,0)+ROUNDDOWN((M163+N163)*I163%,0)-E163>(K163*B163)*1%,0,IF(ROUNDDOWN(K163*B163,0)+ROUNDDOWN(ROUNDDOWN(K163*B163,0)*C163%,0)+ROUNDDOWN((ROUNDDOWN(K163*B163,0)+ROUNDDOWN(ROUNDDOWN(K163*B163,0)*C163%,0))*D163%,0)+ROUNDDOWN((M163+N163)*I163%,0)-E163<0,0,ROUNDDOWN(K163*B163,0)+ROUNDDOWN(ROUNDDOWN(K163*B163,0)*C163%,0)+ROUNDDOWN((ROUNDDOWN(K163*B163,0)+ROUNDDOWN(ROUNDDOWN(K163*B163,0)*C163%,0))*D163%,0)+ROUNDDOWN((M163+N163)*I163%,0)-E163)),"") ->  | M163: =IF(E163>0,ROUNDDOWN(ROUNDDOWN(K163*B163,0)*C163%,0),"") ->  | N163: =IF(E163>0,ROUNDDOWN((ROUNDDOWN(K163*B163,0)+ROUNDDOWN(ROUNDDOWN(K163*B163,0)*C163%,0))*D163%,0),"") -> 
O179: =IF(F179<>"",2,"") ->  | P179: =IF(F179<>"",3,"") ->  | Q179: =IF(F179<>"",1,"") ->  | R179: =IF(F179<>"",1,"") -> 
K194: =IF(IF((ROUNDDOWN(T194,4)*10000)-ROUNDDOWN(T194,3)*10000>5,ROUNDUP(T194,3)+0.001,ROUNDUP(T194,3))=0,"",IF((ROUNDDOWN(T194,4)*10000)-ROUNDDOWN(T194,3)*10000>5,ROUNDUP(T194,3)+0.001,ROUNDUP(T194,3))) ->  | S194: =IFERROR(IF(E194>0,ROUNDDOWN(K194*B194,0)+ROUNDDOWN(ROUNDDOWN(K194*B194,0)*C194%,0)+ROUNDDOWN((ROUNDDOWN(K194*B194,0)+ROUNDDOWN(ROUNDDOWN(K194*B194,0)*C194%,0))*D194%,0)+ROUNDDOWN((M194+N194)*I194%,0)-E194-L194,""),0) -> 
F195: =IF(E195>0,F194+1,"") ->  | J195: =IF(E195>0,J194,"") ->  | L195: =IF(E195>0,IF(ROUNDDOWN(K195*B195,0)+ROUNDDOWN(ROUNDDOWN(K195*B195,0)*C195%,0)+ROUNDDOWN((ROUNDDOWN(K195*B195,0)+ROUNDDOWN(ROUNDDOWN(K195*B195,0)*C195%,0))*D195%,0)+ROUNDDOWN((M195+N195)*I195%,0)-E195>(K195*B195)*1%,0,IF(ROUNDDOWN(K195*B195,0)+ROUNDDOWN(ROUNDDOWN(K195*B195,0)*C195%,0)+ROUNDDOWN((ROUNDDOWN(K195*B195,0)+ROUNDDOWN(ROUNDDOWN(K195*B195,0)*C195%,0))*D195%,0)+ROUNDDOWN((M195+N195)*I195%,0)-E195<0,0,ROUNDDOWN(K195*B195,0)+ROUNDDOWN(ROUNDDOWN(K195*B195,0)*C195%,0)+ROUNDDOWN((ROUNDDOWN(K195*B195,0)+ROUNDDOWN(ROUNDDOWN(K195*B195,0)*C195%,0))*D195%,0)+ROUNDDOWN((M195+N195)*I195%,0)-E195)),"") ->  | M195: =IF(E195>0,ROUNDDOWN(ROUNDDOWN(K195*B195,0)*C195%,0),"") ->  | N195: =IF(E195>0,ROUNDDOWN((ROUNDDOWN(K195*B195,0)+ROUNDDOWN(ROUNDDOWN(K195*B195,0)*C195%,0))*D195%,0),"") -> 
G196: =IF(E196>0,G195,"") ->  | H196: =IF(E196>0,H195,"") -> 

Sheet طلای خام
A1: شماره فاکتور | B1: کد طرف حساب | C1: تاریخ | D1: نوع | E1: الگو | F1: موضوع | G1: روش تسویه | H1: کد کالا | I1: تعداد | J1: مبلغ واحد | K1: مبلغ تخفیف | S1: عیار | AH1: پرداخت شده
A2: 100 | B2: 100 | C2: 1404-06-24 | D2: =IF(A2<>"",2,"") -> 2 | E2: =IF(A2<>"",3,"") -> 3 | F2: =IF(A2<>"",1,"") -> 1 | G2: =IF(A2<>"",1,"") -> 1 | H2: 100 | I2: =IFERROR(IF(ROUNDUP(AH2/J2,2)=0,"",ROUNDUP(AH2/J2,2)),"") -> 4.82 | J2: 66050000 | K2: =IFERROR(IF(ROUNDDOWN(I2*J2,0)-AH2=0,"",ROUNDDOWN(I2*J2,0)-AH2),"") -> 361000 | S2: 750 | AH2: 318000000
A3: =IF(AH3>0,A2+1,"") -> 101 | B3: =IF(AH3>0,B2,"") -> 100 | C3: 1404-06-24 | D3: =IF(A3<>"",2,"") -> 2 | E3: =IF(A3<>"",3,"") -> 3 | F3: =IF(A3<>"",1,"") -> 1 | G3: =IF(A3<>"",1,"") -> 1 | H3: =IF(AH3>0,B2,"") -> 100 | I3: =IFERROR(IF(ROUNDUP(AH3/J3,2)=0,"",ROUNDUP(AH3/J3,2)),"") -> 6.02 | J3: 52850000 | K3: =IFERROR(IF(ROUNDDOWN(I3*J3,0)-AH3=0,"",ROUNDDOWN(I3*J3,0)-AH3),"") -> 157000 | S3: =IF(AH3>0,S2,"") -> 750 | AH3: 318000000
A4: =IF(AH4>0,A3+1,"") -> 102 | B4: =IF(AH4>0,B3,"") -> 100 | C4: 1404-06-24 | D4: 2 | E4: 3 | F4: 1 | G4: 1 | H4: =IF(AH4>0,B3,"") -> 100 | I4: 6.08 | J4: 52370000 | K4: 409600 | S4: =IF(AH4>0,S3,"") -> 750 | AH4: 318000000
A5: 103 | B5: 100 | C5: 1404-06-24 | D5: 2 | E5: 3 | F5: 1 | G5: 1 | H5: 100 | I5: 5.94 | J5: 53550000 | K5: 87000 | S5: 750 | AH5: 318000000
A6: 104 | B6: 100 | C6: 1404-06-24 | D6: 2 | E6: 3 | F6: 1 | G6: 1 | H6: 100 | I6: 6.08 | J6: 52310000 | K6: 44800 | S6: 750 | AH6: 318000000
A7: 105 | B7: 100 | C7: 1404-06-24 | D7: 2 | E7: 3 | F7: 1 | G7: 1 | H7: 100 | I7: 6.08 | J7: 52310000 | K7: 44800 | S7: 750 | AH7: 318000000
A8: 106 | B8: 100 | C8: 1404-06-24 | D8: 2 | E8: 3 | F8: 1 | G8: 1 | H8: 100 | I8: 6.06 | J8: 52530000 | K8: 331800 | S8: 750 | AH8: 318000000
A9: 107 | B9: 100 | C9: 1404-06-24 | D9: 2 | E9: 3 | F9: 1 | G9: 1 | H9: 100 | I9: 5.67 | J9: 56170000 | K9: 483900 | S9: 750 | AH9: 318000000
A10: 108 | B10: 100 | C10: 1404-06-24 | D10: 2 | E10: 3 | F10: 1 | G10: 1 | H10: 100 | I10: 5.69 | J10: 55940000 | K10: 298600 | S10: 750 | AH10: 318000000
D67: =IF(A67<>"",2,"") ->  | E67: =IF(A67<>"",3,"") ->  | F67: =IF(A67<>"",1,"") ->  | G67: =IF(A67<>"",1,"") ->  | I67: =IFERROR(IF(ROUNDUP(AH67/J67,2)=0,"",ROUNDUP(AH67/J67,2)),"") ->  | K67: =IFERROR(IF(ROUNDDOWN(I67*J67,0)-AH67=0,"",ROUNDDOWN(I67*J67,0)-AH67),"") -> 
A68: =IF(AH68>0,A67+1,"") ->  | B68: =IF(AH68>0,B67,"") ->  | H68: =IF(AH68>0,B67,"") ->  | S68: =IF(AH68>0,S67,"") -> 
D131: =IF(A131<>"",2,"") ->  | E131: =IF(A131<>"",3,"") ->  | F131: =IF(A131<>"",1,"") ->  | G131: =IF(A131<>"",1,"") ->  | I131: =IFERROR(IF(ROUNDUP(AH131/J131,2)=0,"",ROUNDUP(AH131/J131,2)),"") ->  | K131: =IFERROR(IF(ROUNDDOWN(I131*J131,0)-AH131=0,"",ROUNDDOWN(I131*J131,0)-AH131),"") -> 
A132: =IF(AH132>0,A131+1,"") ->  | B132: =IF(AH132>0,B131,"") ->  | H132: =IF(AH132>0,B131,"") ->  | S132: =IF(AH132>0,S131,"") -> 
D195: =IF(A195<>"",2,"") ->  | E195: =IF(A195<>"",3,"") ->  | F195: =IF(A195<>"",1,"") ->  | G195: =IF(A195<>"",1,"") ->  | I195: =IFERROR(IF(ROUNDUP(AH195/J195,2)=0,"",ROUNDUP(AH195/J195,2)),"") ->  | K195: =IFERROR(IF(ROUNDDOWN(I195*J195,0)-AH195=0,"",ROUNDDOWN(I195*J195,0)-AH195),"") -> 
A196: =IF(AH196>0,A195+1,"") ->  | B196: =IF(AH196>0,B195,"") ->  | H196: =IF(AH196>0,B195,"") ->  | S196: =IF(AH196>0,S195,"") -> 

Sheet فرمت به کارفرما
A1: شماره فاکتور | B1: کد طرف حساب | C1: ردیف | D1: تاریخ | E1: نام کالا | F1: وزن | G1: مظنه- قیمت روز هر گرم | H1: اجرت | I1: سود | J1: مبلغ دریافتی | K1: عیار
A2: 100 | B2: =IF(J2>0,100,"") ->  | C2: 1
A3: =IF(J3>0,A2+1,"") ->  | C3: 2
C4: 3
C5: 4
C6: 5
C7: 6
C8: 7
C9: 8
C10: 9
C11: 10
C12: 11
C13: 12
C14: 13
C15: 14
C16: 15
C17: 16
C18: 17
C19: 18
C20: 19
C21: 20

Sheet توضیحات
B2: موارد زرد رنگ تکمیل شود.
B3: در استونها فرمول وجود دارد به هیچ عنوان دستکاری نشود پس از تکمیل اطلاعات در شیت طلا با سود و اجرت و تکمیل موراد زرد رنگ دکمه ctrl+m را فشار دهید که به صورت اتوماتیک وزن، مبلغ تخفیف، اجرت ساخت، سود فروشنده را محاسبه خواهد نمود.
B4: در این قسمتها فرمول دارد اما اگر در صورت نیاز میتوانید خودتان تغییر دهید
B5: برای اکسل طلای خام از الگوی " نرم افزار قدیمی - طلا و جواهر" میتوانید استفاده کنید. اما برای حرفه ای طلا و جواهر با سود و کارمزد باید در سمت الگو تعریف کنید
